fUST/lending_fUST_20250206
["ID","MTS","AMOUNT","RATE_DAILY","PERIOD"]
[351917615,1738842644096,-500.0,0.00013698,2]
[351917616,1738842644106,-500.0,0.00013698,2]
[351917617,1738842644115,-505.91623262,0.00013698,2]
[351917618,1738842644125,-1415.22,0.00013698,2]
[351917619,1738842644135,-500.0,0.00013698,2]
[351917620,1738842644144,-500.0,0.00013698,2]
[351917621,1738842644154,-500.0,0.00013698,2]
[351917622,1738842644163,-500.0,0.00013698,2]
[351917623,1738842644173,-500.0,0.00013698,2]
[351917624,1738842644183,-500.0,0.00013698,2]
[351917625,1738842644193,-793.2,0.00013698,2]
[351917626,1738842644202,-500.0,0.00013698,2]
[351917627,1738842644213,-500.0,0.00013698,2]
[351917628,1738842644222,-201.92633535,0.00013698,2]
[351917629,1738842644231,-1731.14,0.00013698,2]
[351917630,1738842644241,-500.0,0.00013698,2]
[351917631,1738842644250,-500.0,0.00013698,2]
[351917632,1738842644260,-500.22167013,0.00013698,2]
[351917633,1738842644269,-500.0,0.00013698,2]
[351917634,1738842644278,-500.0,0.00013698,2]
[351917635,1738842644287,-500.0,0.00013698,2]
[351917636,1738842644296,-18452.3,0.00013698,2]
[351917637,1738842644306,-500.0,0.00013698,2]
[351917638,1738842644317,-615.13,0.00013698,2]
[351917639,1738842644326,-591.08176997,0.00013698,2]
[351917640,1738842644337,-191.40196777,0.00013698,2]
[351917641,1738842644348,-2227.52,0.00013698,2]
[351917642,1738842644358,-500.0,0.00013698,2]
[351917643,1738842644367,-500.0,0.00013698,2]
[351917644,1738842644377,-500.0,0.00013698,2]
[351917645,1738842644386,-500.0,0.00013698,2]
[351917646,1738842644396,-500.0,0.00013698,2]
[351917647,1738842644405,-500.0,0.00013698,2]
[351917648,1738842644414,-500.0,0.00013698,2]
[351917649,1738842644424,-500.0,0.00013698,2]
[351917650,1738842644433,-500.0,0.00013698,2]
[351917651,1738842644443,-500.0,0.00013698,2]
[351917652,1738842644454,-558.10898564,0.00013698,2]
[351917653,1738842644464,-860.93,0.00013698,2]
[351917654,1738842644475,-500.0,0.00013698,2]
[351917655,1738842644489,-500.0,0.00013698,2]
[351917656,1738842644499,-1616.04,0.00013698,2]
[351917657,1738842644508,-500.0,0.00013698,2]
[351917658,1738842644518,-707.22,0.00013698,2]
[351917659,1738842644528,-500.0,0.00013698,2]
[351917660,1738842644539,-3134.91,0.00013698,2]
[351917661,1738842644548,-500.0,0.00013698,2]
[351917662,1738842644560,-500.0,0.00013698,2]
[351917663,1738842644570,-500.0,0.00013698,2]
[351917664,1738842644579,-500.07064162,0.00013698,2]
[351917665,1738842644588,-500.0,0.00013698,2]
[351917666,1738842644598,-500.0,0.00013698,2]
[351917667,1738842644608,-500.0,0.00013698,2]
[351917668,1738842644618,-500.9944304,0.00013698,2]
[351917669,1738842644627,-623.05,0.00013698,2]
[351917670,1738842644636,-9443.97,0.00013698,2]
[351917671,1738842644646,-880.91,0.00013698,2]
[351917672,1738842644656,-500.0,0.00013698,2]
[351917673,1738842644665,-500.0,0.00013698,2]
[351917674,1738842644675,-1837.28,0.00013698,2]
[351917675,1738842644685,-500.0,0.00013698,2]
[351917676,1738842644694,-500.0,0.00013698,2]
[351917677,1738842644705,-500.0,0.00013698,2]
[351917678,1738842644715,-232.91058142,0.00013698,2]
[351917679,1738842644724,-500.0,0.00013698,2]
[351917680,1738842644733,-500.0,0.00013698,2]
[351917681,1738842644744,-3609.07,0.00013698,2]
[351917682,1738842644754,-501.38986885,0.00013698,2]
[351917683,1738842644765,-500.0,0.00013698,2]
[351917684,1738842644775,-500.0,0.00013698,2]
[351917685,1738842644785,-3813.83,0.00013698,2]
[351917686,1738842644795,-833.96,0.00013698,2]
[351917687,1738842644805,-500.0,0.00013698,2]
[351917688,1738842644814,-1366.33,0.00013698,2]
[351917689,1738842644824,-500.0,0.00013698,2]
[351917690,1738842644834,-500.0,0.00013698,2]
[351917691,1738842644844,-866.99,0.00013698,2]
[351917692,1738842644853,-500.0,0.00013698,2]
[351917693,1738842644863,-500.0,0.00013698,2]
[351917694,1738842644872,-500.0,0.00013698,2]
[351917695,1738842644881,-500.0,0.00013698,2]
[351917696,1738842644891,-500.0,0.00013698,2]
[351917697,1738842644900,-1382.8,0.00013698,2]
[351917698,1738842644910,-500.0,0.00013698,2]
[351917699,1738842644919,-3372.58,0.00013698,2]
[351917700,1738842644929,-500.0,0.00013698,2]
[351917701,1738842644938,-567.42,0.00013698,2]
[351917702,1738842644947,-502.44808444,0.00013698,2]
[351917703,1738842644959,-1586.69,0.00013698,2]
[351917704,1738842644969,-1747.35,0.00013698,2]
[351917705,1738842644979,-500.0,0.00013698,2]
[351917706,1738842644988,-500.0,0.00013698,2]
[351917707,1738842644997,-500.0,0.00013698,2]
[351917708,1738842645007,-500.0,0.00013698,2]
[351917709,1738842645017,-500.0,0.00013698,2]
[351917710,1738842645027,-500.0,0.00013698,2]
[351917711,1738842645038,-500.0,0.00013698,2]
[351917712,1738842645047,-500.0,0.00013698,2]
[351917713,1738842645057,-500.0,0.00013698,2]
[351917714,1738842645067,-988.03,0.00013698,2]
[351917715,1738842645077,-500.0,0.00013698,2]
[351917716,1738842645087,-500.0,0.00013698,2]
[351917717,1738842645097,-506.13247617,0.00013698,2]
[351917718,1738842645106,-1348.98,0.00013698,2]
[351917719,1738842645116,-500.0,0.00013698,2]
[351917720,1738842645126,-500.0,0.00013698,2]
[351917721,1738842645137,-500.0,0.00013698,2]
[351917722,1738842645146,-849.09,0.00013698,2]
[351917723,1738842645156,-500.0,0.00013698,2]
[351917724,1738842645166,-500.0,0.00013698,2]
[351917725,1738842645176,-3529.97,0.00013698,2]
[351917726,1738842645186,-501.34143529,0.00013698,2]
[351917727,1738842645196,-500.0,0.00013698,2]
[351917728,1738842645208,-500.0,0.00013698,2]
[351917729,1738842645218,-500.0,0.00013698,2]
[351917730,1738842645227,-500.0,0.00013698,2]
[351917731,1738842645237,-8013.57,0.00013698,2]
[351917732,1738842645248,-500.0,0.00013698,2]
[351917733,1738842645259,-500.0,0.00013698,2]
[351917734,1738842645269,-1777.02,0.00013698,2]
[351917735,1738842645280,-500.0,0.00013698,2]
[351917736,1738842645289,-500.0,0.00013698,2]
[351917737,1738842645300,-513.0595766,0.00013698,2]
[351917738,1738842645309,-4672.25348,0.00013699,2]
[351917739,1738842645320,-731.182931,0.00013699,2]
[351917740,1738842645330,-279.886149,0.00013699,2]
[351917741,1738842645341,-500.0,0.00013699,2]
[351917742,1738842645351,-500.0,0.00013699,2]
[351917743,1738842645364,-500.0,0.00013699,2]
[351917744,1738842645376,-500.0,0.00013699,2]
[351917745,1738842645385,-500.0,0.00013699,2]
[351917746,1738842645395,-500.0,0.00013699,2]
[351917747,1738842645404,-500.0,0.00013699,2]
[351917748,1738842645413,-500.0,0.00013699,2]
[351917749,1738842645423,-500.0,0.00013699,2]
[351917750,1738842645432,-500.0,0.00013699,2]
[351917751,1738842645442,-477.68999587,0.00013699,2]
[351917752,1738842645451,-500.0,0.00013699,2]
[351917753,1738842645463,-500.0,0.00013699,2]
[351917754,1738842645473,-500.0,0.00013699,2]
[351917755,1738842645486,-500.0,0.00013699,2]
[351917756,1738842645495,-500.0,0.00013699,2]
[351917757,1738842645505,-343.71355289,0.00013699,2]
[351917758,1738842645515,-500.0,0.00013699,2]
[351917759,1738842645525,-343.71355289,0.00013699,2]
[351917760,1738842645535,-500.0,0.00013699,2]
[351917761,1738842645545,-343.71355289,0.00013699,2]
[351917762,1738842645554,-500.0,0.00013699,2]
[351917763,1738842645565,-343.71355289,0.00013699,2]
[351917764,1738842645574,-500.0,0.00013699,2]
[351917765,1738842645584,-343.71355289,0.00013699,2]
[351917766,1738842645593,-343.71355289,0.00013699,2]
[351917767,1738842645603,-500.0,0.00013699,2]
[351917768,1738842645613,-500.0,0.00013699,2]
[351917769,1738842645623,-343.71355289,0.00013699,2]
[351917770,1738842645632,-500.0,0.00013699,2]
[351917771,1738842645641,-500.0,0.00013699,2]
[351917772,1738842645651,-438.33721835,0.00013699,2]
[351917773,1738842645661,-500.0,0.00013699,2]
[351917774,1738842645671,-500.0,0.00013699,2]
[351917775,1738842645680,-189.24733092,0.00013699,2]
[351917776,1738842645690,-353.3849088,0.000137,2]
[351917777,1738842645699,-354.6875562,0.000137,2]
[351917778,1738842645710,-215.7447597,0.00013726,2]
[351917779,1738842645720,-215.7447597,0.00013726,2]
[351917780,1738842645729,-153.0,0.000138,2]
[351917781,1738842645739,-152.0,0.00013801,2]
[351917782,1738842645749,-160.0,0.00013827,3]
[351917783,1738842645760,-500.0,0.00013835,2]
[351917784,1738842645770,-500.0,0.00013835,2]
[351917785,1738842645780,-500.0,0.00013835,2]
[351917786,1738842645790,-500.89598415,0.00013835,2]
[351917787,1738842645800,-500.0,0.00013835,2]
[351917788,1738842645810,-547.62,0.00013835,2]
[351917789,1738842645819,-500.0,0.00013835,2]
[351917790,1738842645829,-501.84516119,0.00013835,2]
[351917791,1738842645839,-222.31,0.00013835,2]
[351917792,1738842645849,-500.0,0.00013835,2]
[351917793,1738842645859,-500.0,0.00013835,2]
[351917794,1738842645869,-500.0,0.00013835,2]
[351917795,1738842645878,-500.0,0.00013835,2]
[351917796,1738842645887,-500.0,0.00013835,2]
[351917797,1738842645897,-500.0,0.00013835,2]
[351917798,1738842645907,-500.0,0.00013835,2]
[351917799,1738842645916,-500.0,0.00013835,2]
[351917800,1738842645926,-500.0,0.00013835,2]
[351917801,1738842645936,-500.0,0.00013835,2]
[351917802,1738842645946,-500.0,0.00013835,2]
[351917803,1738842645956,-500.0,0.00013835,2]
[351917804,1738842645966,-635.00070689,0.00013835,2]
[351917805,1738842645976,-500.0,0.00013835,2]
[351917806,1738842645985,-500.0,0.00013835,2]
[351917807,1738842645995,-500.0,0.00013835,2]
[351917808,1738842646005,-505.62,0.00013835,2]
[351917809,1738842646015,-500.0,0.00013835,2]
[351917810,1738842646025,-500.0,0.00013835,2]
[351917811,1738842646035,-500.0,0.00013835,2]
[351917812,1738842646045,-500.0,0.00013835,2]
[351917813,1738842646056,-500.0,0.00013835,2]
[351917814,1738842646066,-500.0,0.00013835,2]
[351917815,1738842646076,-500.0,0.00013835,2]
[351917816,1738842646086,-572.16,0.00013835,2]
[351917817,1738842646096,-500.0,0.00013835,2]
[351917818,1738842646106,-1027.19,0.00013835,2]
[351917819,1738842646116,-500.0,0.00013835,2]
[351917820,1738842646126,-500.0,0.00013835,2]
[351917821,1738842646135,-500.0,0.00013835,2]
[351917822,1738842646145,-500.0,0.00013835,2]
[351917823,1738842646155,-500.0,0.00013835,2]
[351917824,1738842646165,-500.0,0.00013835,2]
[351917825,1738842646175,-500.0,0.00013835,2]
[351917826,1738842646185,-500.0,0.00013835,2]
[351917827,1738842646195,-500.0,0.00013835,2]
[351917828,1738842646206,-500.0,0.00013835,2]
[351917829,1738842646216,-721.26,0.00013835,2]
[351917830,1738842646227,-520.19798974,0.00013835,2]
[351917831,1738842646237,-868.38,0.00013835,2]
[351917832,1738842646247,-598.59823847,0.00013835,2]
[351917833,1738842646257,-584.16711782,0.00013835,2]
[351917834,1738842646266,-564.34,0.00013835,2]
[351917835,1738842646275,-500.0,0.00013835,2]
[351917836,1738842646285,-500.0,0.00013835,2]
[351917837,1738842646295,-500.0,0.00013835,2]
[351917838,1738842646305,-500.0,0.00013835,2]
[351917839,1738842646314,-500.0,0.00013835,2]
[351917840,1738842646324,-500.0,0.00013835,2]
[351917841,1738842646335,-500.0,0.00013835,2]
[351917842,1738842646348,-500.0,0.00013835,2]
[351917843,1738842646370,-696.13,0.00013835,2]
[351917844,1738842646416,-500.0,0.00013835,2]
[351917845,1738842646483,-500.0,0.00013835,2]
[351917846,1738842646587,-795.46,0.00013835,2]
[351917847,1738842646817,-500.0,0.00013835,2]
[351917848,1738842646934,-500.0,0.00013835,2]
[351917849,1738842647073,-500.0,0.00013835,2]
[351917850,1738842647154,-500.0,0.00013835,2]
[351917851,1738842647252,-502.54,0.00013835,2]
[351917852,1738842647352,-500.0,0.00013835,2]
[351917853,1738842647426,-500.0,0.00013835,2]
[351917854,1738842647507,-500.0,0.00013835,2]
[351917855,1738842647521,-500.0,0.00013835,2]
[351917856,1738842647532,-500.0,0.00013835,2]
[351917858,1738842647542,-588.89,0.00013835,2]
[351917860,1738842647552,-500.0,0.00013835,2]
[351917862,1738842647561,-500.0,0.00013835,2]
[351917863,1738842647570,-500.0,0.00013835,2]
[351917864,1738842647579,-500.0,0.00013835,2]
[351917865,1738842647589,-500.0,0.00013835,2]
[351917867,1738842647598,-500.0,0.00013835,2]
[351917869,1738842647608,-500.0,0.00013835,2]
[351917871,1738842647617,-500.0,0.00013835,2]
[351917873,1738842647626,-500.0,0.00013835,2]
[351917874,1738842647635,-1680.71,0.00013835,2]
[351917876,1738842647645,-500.0,0.00013835,2]
[351917878,1738842647654,-989.61,0.00013835,2]
[351917880,1738842647663,-500.0,0.00013835,2]
[351917882,1738842647672,-500.0,0.00013835,2]
[351917883,1738842647682,-1856.51,0.00013835,2]
[351917885,1738842647691,-302.83583283,0.00013835,2]
[351917887,1738842647700,-500.0,0.00013835,2]
[351917888,1738842647710,-500.0,0.00013835,2]
[351917889,1738842647720,-607.6328422,0.00013835,2]
[351917890,1738842647730,-500.0,0.00013835,2]
[351917891,1738842647740,-501.54869697,0.00013835,2]
[351917892,1738842647749,-500.0,0.00013835,2]
[351917893,1738842647760,-500.0,0.00013835,2]
[351917894,1738842647770,-500.0,0.00013835,2]
[351917895,1738842647779,-500.0,0.00013835,2]
[351917896,1738842647788,-500.0,0.00013835,2]
[351917897,1738842647798,-500.0,0.00013835,2]
[351917898,1738842647808,-500.0,0.00013835,2]
[351917900,1738842647817,-500.0,0.00013835,2]
[351917902,1738842647828,-500.0,0.00013835,2]
[351917904,1738842647838,-500.0,0.00013835,2]
[351917905,1738842647847,-500.0,0.00013835,2]
[351917906,1738842647857,-500.0,0.00013835,2]
[351917907,1738842647867,-186.98,0.00013835,2]
[351917908,1738842647877,-500.0,0.00013835,2]
[351917909,1738842647887,-695.02,0.00013835,2]
[351917910,1738842647897,-850.88,0.00013835,2]
[351917911,1738842647907,-500.0,0.00013835,2]
[351917912,1738842647917,-629.98221922,0.00013835,2]
[351917913,1738842647926,-500.0,0.00013835,2]
[351917914,1738842647936,-248.69249772,0.00013835,2]
[351917916,1738842647946,-500.0,0.00013835,2]
[351917918,1738842647958,-500.0,0.00013835,2]
[351917919,1738842647969,-746.67,0.00013835,2]
[351917920,1738842647979,-1395.88,0.00013835,2]
[351917921,1738842647989,-500.0,0.00013835,2]
[351917922,1738842647999,-500.0,0.00013835,2]
[351917923,1738842648010,-500.0,0.00013835,2]
[351917924,1738842648021,-500.0,0.00013835,2]
[351917925,1738842648032,-500.0,0.00013835,2]
[351917926,1738842648042,-1348.69,0.00013835,2]
[351917927,1738842648053,-500.0,0.00013835,2]
[351917928,1738842648063,-1504.43,0.00013835,2]
[351917929,1738842648073,-500.0,0.00013835,2]
[351917930,1738842648083,-500.0,0.00013835,2]
[351917931,1738842648093,-500.0,0.00013835,2]
[351917932,1738842648103,-526.45,0.00013835,2]
[351917933,1738842648113,-500.0,0.00013835,2]
[351917934,1738842648123,-500.0,0.00013835,2]
[351917935,1738842648133,-721.25,0.00013835,2]
[351917936,1738842648143,-500.0,0.00013835,2]
[351917937,1738842648153,-500.0,0.00013835,2]
[351917938,1738842648164,-1135.09,0.00013835,2]
[351917939,1738842648174,-500.0,0.00013835,2]
[351917940,1738842648184,-157.36397208,0.00013835,2]
[351917941,1738842648194,-729.36,0.00013835,2]
[351917942,1738842648204,-852.41,0.00013835,2]
[351917943,1738842648217,-500.0,0.00013835,2]
[351917944,1738842648228,-3451.32,0.00013835,2]
[351917945,1738842648239,-14115.56,0.00013835,2]
[351917946,1738842648251,-520.68859544,0.00013835,2]
[351917947,1738842648261,-500.0,0.00013835,2]
[351917948,1738842648271,-500.0,0.00013835,2]
[351917949,1738842648281,-727.02,0.00013835,2]
[351917950,1738842648291,-500.0,0.00013835,2]
[351917951,1738842648301,-305.34318282,0.00013835,2]
[351917952,1738842648311,-500.0,0.00013835,2]
[351917953,1738842648321,-500.0,0.00013835,2]
[351917954,1738842648331,-500.0,0.00013835,2]
[351917955,1738842648341,-1074.43,0.00013835,2]
[351917956,1738842648352,-500.0,0.00013835,2]
[351917957,1738842648362,-500.0,0.00013835,2]
[351917958,1738842648372,-500.0,0.00013835,2]
[351917959,1738842648383,-500.0,0.00013835,2]
[351917960,1738842648393,-500.0,0.00013835,2]
[351917961,1738842648404,-452.45943252,0.00013835,2]
[351917962,1738842648414,-500.0,0.00013835,2]
[351917963,1738842648425,-500.0,0.00013835,2]
[351917964,1738842648436,-500.0,0.00013835,2]
[351917965,1738842648446,-500.0,0.00013835,2]
[351917966,1738842648458,-500.0,0.00013835,2]
[351917967,1738842648473,-500.0,0.00013835,2]
[351917968,1738842648485,-500.0,0.00013835,2]
[351917969,1738842648495,-1406.19,0.00013835,2]
[351917970,1738842648506,-500.0,0.00013835,2]
[351917971,1738842648516,-1383.45,0.00013835,2]
[351917972,1738842648528,-500.0,0.00013835,2]
[351917973,1738842648539,-500.0,0.00013835,2]
[351917974,1738842648551,-6508.2,0.00013835,2]
[351917975,1738842648563,-506.71006065,0.00013835,2]
[351917976,1738842648577,-500.0,0.00013835,2]
[351917977,1738842648588,-500.0,0.00013835,2]
[351917978,1738842648600,-500.0,0.00013835,2]
[351917979,1738842648611,-500.0,0.00013835,2]
[351917980,1738842648622,-500.0,0.00013835,2]
[351917981,1738842648633,-654.75,0.00013835,2]
[351917982,1738842648643,-1195.52,0.00013835,2]
[351917983,1738842648654,-500.0,0.00013835,2]
[351917984,1738842648665,-1595.17,0.00013835,2]
[351917985,1738842648675,-500.0,0.00013835,2]
[351917986,1738842648686,-500.0,0.00013835,2]
[351917987,1738842648696,-513.61,0.00013835,2]
[351917988,1738842648708,-500.0,0.00013835,2]
[351917989,1738842648720,-500.0,0.00013835,2]
[351917990,1738842648731,-50073.77,0.00013835,2]
[351917991,1738842648743,-5130.2,0.00013835,2]
[351917992,1738842648753,-500.0,0.00013835,2]
[351917993,1738842648764,-500.0,0.00013835,2]
[351917994,1738842648774,-500.73741514,0.00013835,2]
[351917995,1738842648786,-500.0,0.00013835,2]
[351917996,1738842648797,-500.0,0.00013835,2]
[351917997,1738842648808,-500.0,0.00013835,2]
[351917998,1738842648818,-500.0,0.00013835,2]
[351917999,1738842648829,-500.0,0.00013835,2]
[351918000,1738842648839,-2577.92,0.00013835,2]
[351918001,1738842648849,-500.0,0.00013835,2]
[351918002,1738842648859,-500.0,0.00013835,2]
[351918003,1738842648871,-2626.19,0.00013835,2]
[351918004,1738842648882,-500.0,0.00013835,2]
[351918005,1738842648892,-798.79,0.00013835,2]
[351918006,1738842648903,-2224.11,0.00013835,2]
[351918007,1738842648913,-500.0,0.00013835,2]
[351918008,1738842648923,-500.0,0.00013835,2]
[351918009,1738842648933,-500.0,0.00013835,2]
[351918010,1738842648944,-500.0,0.00013835,2]
[351918011,1738842648954,-1545.94,0.00013835,2]
[351918012,1738842648967,-500.0,0.00013835,2]
[351918013,1738842648978,-500.0,0.00013835,2]
[351918014,1738842648989,-500.0,0.00013835,2]
[351918015,1738842649000,-500.0,0.00013835,2]
[351918016,1738842649011,-993.22,0.00013835,2]
[351918017,1738842649023,-587.09,0.00013835,2]
[351918018,1738842649034,-500.0,0.00013835,2]
[351918019,1738842649045,-500.0,0.00013835,2]
[351918020,1738842649055,-1415.22,0.00013835,2]
[351918021,1738842649065,-502.0140695,0.00013835,2]
[351918022,1738842649076,-500.0,0.00013835,2]
[351918023,1738842649087,-500.0,0.00013835,2]
[351918024,1738842649098,-500.0,0.00013835,2]
[351918025,1738842649108,-793.2,0.00013835,2]
[351918026,1738842649120,-1731.14,0.00013835,2]
[351918027,1738842649130,-500.0,0.00013835,2]
[351918028,1738842649140,-500.0,0.00013835,2]
[351918029,1738842649151,-500.0,0.00013835,2]
[351918030,1738842649163,-18452.3,0.00013835,2]
[351918031,1738842649173,-500.0,0.00013835,2]
[351918032,1738842649184,-2227.52,0.00013835,2]
[351918033,1738842649195,-500.0,0.00013835,2]
[351918034,1738842649206,-500.0,0.00013835,2]
[351918035,1738842649218,-500.0,0.00013835,2]
[351918036,1738842649229,-265.81682535,0.00013835,2]
[351918037,1738842649241,-860.93,0.00013835,2]
[351918038,1738842649251,-500.0,0.00013835,2]
[351918039,1738842649262,-1616.04,0.00013835,2]
[351918040,1738842649273,-500.0,0.00013835,2]
[351918041,1738842649284,-707.22,0.00013835,2]
[351918042,1738842649296,-430.06274522,0.00013835,2]
[351918043,1738842649307,-3134.91,0.00013835,2]
[351918044,1738842649317,-500.0,0.00013835,2]
[351918045,1738842649328,-623.02576731,0.00013835,2]
[351918046,1738842649338,-500.0,0.00013835,2]
[351918047,1738842649349,-623.05,0.00013835,2]
[351918048,1738842649360,-9443.97,0.00013835,2]
[351918049,1738842649372,-880.91,0.00013835,2]
[351918050,1738842649384,-500.0,0.00013835,2]
[351918051,1738842649394,-500.0,0.00013835,2]
[351918052,1738842649404,-1837.28,0.00013835,2]
[351918053,1738842649415,-500.0,0.00013835,2]
[351918054,1738842649426,-500.0,0.00013835,2]
[351918055,1738842649437,-501.10830904,0.00013835,2]
[351918056,1738842649447,-3609.07,0.00013835,2]
[351918057,1738842649460,-500.0,0.00013835,2]
[351918058,1738842649471,-500.0,0.00013835,2]
[351918059,1738842649486,-3813.83,0.00013835,2]
[351918060,1738842649497,-833.96,0.00013835,2]
[351918061,1738842649507,-500.0,0.00013835,2]
[351918062,1738842649518,-1366.33,0.00013835,2]
[351918063,1738842649528,-500.0,0.00013835,2]
[351918064,1738842649539,-500.0,0.00013835,2]
[351918065,1738842649549,-866.99,0.00013835,2]
[351918066,1738842649562,-500.0,0.00013835,2]
[351918067,1738842649574,-500.0,0.00013835,2]
[351918068,1738842649584,-500.0,0.00013835,2]
[351918069,1738842649595,-500.0,0.00013835,2]
[351918070,1738842649606,-1382.8,0.00013835,2]
[351918071,1738842649616,-500.0,0.00013835,2]
[351918072,1738842649627,-3372.58,0.00013835,2]
[351918073,1738842649637,-500.0,0.00013835,2]
[351918074,1738842649647,-567.42,0.00013835,2]
[351918075,1738842649658,-1586.69,0.00013835,2]
[351918076,1738842649668,-1747.35,0.00013835,2]
[351918077,1738842649678,-500.0,0.00013835,2]
[351918078,1738842649688,-500.0,0.00013835,2]
[351918079,1738842649697,-500.0,0.00013835,2]
[351918080,1738842649709,-500.0,0.00013835,2]
[351918081,1738842649721,-517.54206974,0.00013835,2]
[351918082,1738842649731,-500.0,0.00013835,2]
[351918083,1738842649740,-500.0,0.00013835,2]
[351918084,1738842649750,-589.52,0.00013835,2]
[351918085,1738842649760,-988.03,0.00013835,2]
[351918086,1738842649770,-388.58976229,0.00013835,2]
[351918087,1738842649779,-500.0,0.00013835,2]
[351918088,1738842649789,-1348.98,0.00013835,2]
[351918089,1738842649798,-500.0,0.00013835,2]
[351918090,1738842649808,-500.0,0.00013835,2]
[351918091,1738842649818,-500.0,0.00013835,2]
[351918092,1738842649828,-849.09,0.00013835,2]
[351918093,1738842649837,-500.0,0.00013835,2]
[351918094,1738842649848,-500.0,0.00013835,2]
[351918095,1738842649858,-3529.97,0.00013835,2]
[351918096,1738842649868,-387.40076996,0.00013835,2]
[351918097,1738842649877,-500.0,0.00013835,2]
[351918098,1738842649887,-8013.57,0.00013835,2]
[351918099,1738842649897,-500.0,0.00013835,2]
[351918100,1738842649907,-1777.02,0.00013835,2]
[351918101,1738842649916,-500.0,0.00013835,2]
[351918102,1738842649926,-500.0,0.00013873,2]
[351918103,1738842649935,-1278.97486879,0.000139,2]
[351918104,1738842649945,-153.0,0.000139,2]
[351918105,1738842649954,-215.7447597,0.000139,2]
[351918106,1738842649967,-215.7447597,0.000139,2]
[351918107,1738842649976,-215.7447597,0.000139,2]
[351918108,1738842649986,-500.0,0.00013931,7]
[351918109,1738842649997,-500.0,0.00013931,7]
[351918110,1738842650006,-359.61,0.00013931,7]
[351918111,1738842650016,-438.56577569,0.00013963,2]
[351918112,1738842650026,-500.0,0.00013972,2]
[351918113,1738842650036,-500.0,0.00013972,2]
[351918114,1738842650046,-500.0,0.00013972,2]
[351918115,1738842650057,-500.0,0.00013972,2]
[351918116,1738842650067,-547.62,0.00013972,2]
[351918117,1738842650076,-535.09,0.00013972,2]
[351918118,1738842650086,-500.0,0.00013972,2]
[351918119,1738842650096,-500.0,0.00013972,2]
[351918120,1738842650106,-500.0,0.00013972,2]
[351918121,1738842650115,-500.0,0.00013972,2]
[351918122,1738842650125,-507.76093265,0.00013972,2]
[351918123,1738842650134,-575.99855087,0.00013972,2]
[351918124,1738842650144,-500.0,0.00013972,2]
[351918125,1738842650154,-500.0,0.00013972,2]
[351918126,1738842650163,-500.0,0.00013972,2]
[351918127,1738842650172,-184.26,0.00013972,2]
[351918128,1738842650182,-500.0,0.00013972,2]
[351918129,1738842650192,-500.0,0.00013972,2]
[351918130,1738842650202,-500.0,0.00013972,2]
[351918131,1738842650213,-1027.19,0.00013972,2]
[351918132,1738842650222,-500.0,0.00013972,2]